bitfinex-derivatives/quotes_BNBF0:USTF0_20250608
["timestamp","ask_amount","ask_price","bid_price","bid_amount"]
[1749369160332,1.105965,649.56,648.99,0.461]
[1749369160528,1.105965,649.55,648.99,0.461]
[1749369160729,1.105965,649.54,648.99,0.461]
[1749369161032,1.105965,649.53,648.99,0.461]
[1749369161229,1.105965,649.52,648.99,0.461]
[1749369161529,0.538,649.56,648.99,0.461]
[1749369161530,1.105965,649.51,648.99,0.461]
[1749369161733,1.105965,649.5,648.99,0.461]
[1749369161933,1.105965,649.49,648.99,0.461]
[1749369162134,1.105965,649.48,648.99,0.461]
[1749369162333,1.105965,649.47,648.99,0.461]
[1749369162536,1.105965,649.46,648.99,0.461]
[1749369162733,1.105965,649.45,648.99,0.461]
[1749369162937,1.105965,649.44,648.99,0.461]
[1749369163138,1.105965,649.43,648.99,0.461]
[1749369163336,1.105965,649.42,648.99,0.461]
[1749369163536,1.105965,649.41,648.99,0.461]
[1749369163741,1.105965,649.4,648.99,0.461]
[1749369163940,1.105965,649.39,648.99,0.461]
[1749369164141,0.538,649.56,648.99,0.461]
[1749369164338,1.10608701,649.55,648.99,0.461]
[1749369164642,1.10608701,649.54,648.99,0.461]
[1749369164938,1.10608701,649.53,648.99,0.461]
[1749369165141,1.10608701,649.52,648.99,0.461]
[1749369165342,1.10608701,649.51,648.99,0.461]
[1749369165544,1.10608701,649.5,648.99,0.461]
[1749369165738,1.10608701,649.49,648.99,0.461]
[1749369165938,1.10608701,649.48,648.99,0.461]
[1749369166243,1.10608701,649.47,648.99,0.461]
[1749369166438,1.10608701,649.46,648.99,0.461]
[1749369166638,0.538,649.56,648.99,0.461]
[1749369166639,1.10608701,649.45,648.99,0.461]
[1749369166839,1.10608701,649.44,648.99,0.461]
[1749369167041,1.10608701,649.43,648.99,0.461]
[1749369167242,1.10608701,649.42,648.99,0.461]
[1749369167544,1.10608701,649.41,648.99,0.461]
[1749369167741,1.10608701,649.4,648.99,0.461]
[1749369167941,0.538,649.56,648.99,0.461]
[1749369168141,1.10613479,649.55,648.99,0.461]
[1749369168340,1.10613479,649.54,648.99,0.461]
[1749369168545,1.10613479,649.53,648.99,0.461]
[1749369168745,1.10613479,649.52,648.99,0.461]
[1749369168942,1.10613479,649.51,648.99,0.461]
[1749369169145,1.10613479,649.5,648.99,0.461]
[1749369169445,1.10613479,649.49,648.99,0.461]
[1749369169644,1.10613479,649.48,648.99,0.461]
[1749369169845,1.10613479,649.47,648.99,0.461]
[1749369170042,0.538,649.56,648.99,0.461]
[1749369170043,1.10613479,649.46,648.99,0.461]
[1749369170343,1.10613479,649.45,648.92,0.3082044]
[1749369170543,1.10613479,649.44,648.92,0.3082044]
[1749369170745,1.10613479,649.43,648.92,0.3082044]
[1749369170945,1.10613479,649.42,648.92,0.3082044]
[1749369171144,1.10613479,649.41,648.92,0.3082044]
[1749369171448,1.10613479,649.4,648.92,0.3082044]
[1749369171744,1.10613479,649.39,648.92,0.3082044]
[1749369171945,1.10613479,649.38,648.92,0.3082044]
[1749369172146,1.10613479,649.37,648.93,0.384]
[1749369172345,1.10613479,649.36,648.93,0.384]
[1749369172548,1.10613479,649.35,648.93,0.384]
[1749369172748,1.10613479,649.34,648.93,0.384]
[1749369172951,1.10613479,649.33,648.93,0.384]
[1749369173152,1.10613479,649.32,648.93,0.384]
[1749369173347,0.538,649.56,648.93,0.384]
[1749369173348,1.10613479,649.31,648.93,0.384]
[1749369173552,1.10613479,649.3,648.93,0.384]
[1749369173750,0.538,649.56,648.94,0.615]
[1749369173953,1.10562027,649.55,648.94,0.615]
[1749369174155,1.10562027,649.54,648.94,0.615]
[1749369174349,1.10562027,649.53,648.94,0.615]
[1749369174554,1.10562027,649.52,648.94,0.615]
[1749369174852,1.10562027,649.51,648.94,0.615]
[1749369175049,1.10562027,649.5,648.94,0.615]
[1749369175353,1.10562027,649.49,648.94,0.615]
[1749369175554,1.10562027,649.48,648.94,0.615]
[1749369175750,1.10562027,649.47,648.94,0.615]
[1749369175956,1.10562027,649.46,648.94,0.615]
[1749369176252,0.26798297,649.65,648.94,0.615]
[1749369176253,1.10562027,649.45,648.94,0.615]
[1749369176551,1.10562027,649.44,648.94,0.615]
[1749369176856,1.10562027,649.43,648.94,0.615]
[1749369177058,1.10562027,649.42,648.94,0.615]
[1749369177257,1.10562027,649.41,648.94,0.615]
[1749369177557,1.10562027,649.4,648.94,0.615]
[1749369177757,1.10562027,649.39,648.94,0.615]
[1749369177955,1.10562027,649.38,648.94,0.615]
[1749369178155,1.10562027,649.37,648.94,0.615]
[1749369178354,1.10562027,649.36,648.94,0.615]
[1749369178553,0.26798297,649.65,648.94,0.615]
[1749369178554,1.10562027,649.35,648.94,0.615]
[1749369178758,1.10562027,649.34,648.94,0.615]
[1749369178959,1.10562027,649.33,648.94,0.615]
[1749369179159,1.15112161,649.6,648.94,0.615]
[1749369179458,1.53238658,649.59,648.94,0.615]
[1749369179656,1.10538658,649.58,648.94,0.615]
[1749369179860,1.10538658,649.57,648.94,0.615]
[1749369180057,1.10538658,649.56,648.94,0.615]
[1749369180260,1.10538658,649.55,648.94,0.615]
[1749369180457,1.10538658,649.54,648.94,0.615]
[1749369180762,1.10538658,649.53,648.94,0.615]
[1749369180961,1.10538658,649.52,648.94,0.615]
[1749369181261,1.10538658,649.51,648.94,0.615]
[1749369181457,1.10538658,649.5,648.94,0.615]
[1749369181663,1.10538658,649.49,648.94,0.615]
[1749369181859,1.10538658,649.48,648.94,0.615]
[1749369182062,1.10538658,649.47,648.94,0.615]
[1749369182263,1.10538658,649.46,648.94,0.615]
[1749369182566,1.10538658,649.45,648.94,0.615]
[1749369182763,1.10538658,649.44,648.94,0.615]
[1749369182968,1.10538658,649.43,648.94,0.615]
[1749369183265,1.10538658,649.42,648.94,0.615]
[1749369183466,1.10549446,649.41,648.94,0.615]
[1749369183670,1.10549446,649.4,648.94,0.615]
[1749369183969,1.10549446,649.39,648.94,0.615]
[1749369184166,1.10549446,649.38,648.94,0.615]
[1749369184367,1.10549446,649.37,648.94,0.615]
[1749369184564,1.10549446,649.36,648.94,0.615]
[1749369184768,1.10549446,649.35,648.94,0.615]
[1749369184969,1.10549446,649.34,648.94,0.615]
[1749369185168,1.15034252,649.57,648.94,0.615]
[1749369185371,1.10811629,649.56,648.94,0.615]
[1749369185568,1.10811629,649.55,648.94,0.615]
[1749369185771,1.10811629,649.54,648.94,0.615]
[1749369185972,1.10811629,649.53,648.94,0.615]
[1749369186174,1.10811629,649.52,648.94,0.615]
[1749369186372,1.10811629,649.51,648.94,0.615]
[1749369186669,1.10811629,649.5,648.94,0.615]
[1749369186866,1.10811629,649.49,648.94,0.615]
[1749369187071,1.10811629,649.48,648.94,0.615]
[1749369187269,1.10811629,649.47,648.94,0.615]
[1749369187468,1.10811629,649.46,648.94,0.615]
[1749369187667,1.10811629,649.45,648.94,0.615]
[1749369187870,1.10811629,649.44,648.94,0.615]
[1749369188175,1.10811629,649.43,648.94,0.615]
[1749369188472,1.15034252,649.56,648.94,0.615]
[1749369188473,1.10811629,649.42,648.94,0.615]
[1749369188669,1.10811629,649.41,648.94,0.615]
[1749369188872,1.10811629,649.4,648.94,0.615]
[1749369189069,1.10811629,649.39,648.94,0.615]
[1749369189269,1.10811629,649.38,648.94,0.615]
[1749369189472,1.10811629,649.37,648.94,0.615]
[1749369189670,1.10811629,649.36,648.94,0.615]
[1749369189871,1.10811629,649.35,648.94,0.615]
[1749369190072,1.10811629,649.34,648.94,0.615]
[1749369190271,1.10811629,649.33,648.94,0.615]
[1749369190475,1.57734252,649.59,648.94,0.615]
[1749369190771,1.10740741,649.58,648.94,0.615]
[1749369190971,1.10740741,649.57,648.94,0.615]
[1749369191270,1.10740741,649.56,648.94,0.615]
[1749369191470,1.10740741,649.55,648.94,0.615]
[1749369191673,1.10740741,649.54,648.94,0.615]
[1749369191875,1.10740741,649.53,648.94,0.615]
[1749369192075,1.10740741,649.52,648.94,0.615]
[1749369192276,1.10740741,649.51,648.94,0.615]
[1749369192472,1.10740741,649.5,648.94,0.615]
[1749369192672,1.10740741,649.49,648.94,0.615]
[1749369192981,1.10740741,649.48,648.95,0.384]
[1749369193275,1.10740741,649.47,648.95,0.384]
[1749369193476,1.10740741,649.46,648.95,0.384]
[1749369193776,1.10740741,649.45,648.95,0.384]
[1749369194072,1.10740741,649.44,648.95,0.384]
[1749369194278,0.427,649.59,648.95,0.384]
[1749369194279,1.10740741,649.43,648.95,0.384]
[1749369194477,1.10740741,649.42,648.95,0.384]
[1749369194675,1.10740741,649.41,648.95,0.384]
[1749369194977,1.10740741,649.4,648.95,0.384]
[1749369195178,1.10740741,649.39,648.95,0.384]
[1749369195377,1.10740741,649.38,648.95,0.384]
[1749369195579,1.10740741,649.37,648.95,0.384]
[1749369195774,1.10740741,649.36,648.95,0.384]
[1749369196074,1.10740741,649.35,648.95,0.384]
[1749369196378,1.10740741,649.34,648.95,0.384]
[1749369196579,1.57734252,649.59,648.95,0.384]
[1749369196775,1.10744757,649.58,648.95,0.384]
[1749369197075,1.10744757,649.57,648.95,0.384]
[1749369197374,1.10744757,649.56,648.95,0.384]
[1749369197575,1.10744757,649.55,648.95,0.384]
[1749369197774,1.10744757,649.54,648.95,0.384]
[1749369197973,1.10744757,649.53,648.95,0.384]
[1749369198178,1.10744757,649.52,648.95,0.384]
[1749369198478,1.10744757,649.51,648.95,0.384]
[1749369198779,1.57734252,649.59,648.95,0.384]
[1749369198780,1.10744757,649.5,648.95,0.384]
[1749369198976,1.10744757,649.49,648.95,0.384]
[1749369199176,1.10744757,649.48,648.95,0.384]
[1749369199477,1.10744757,649.47,648.95,0.384]
[1749369199677,1.10742237,649.46,648.95,0.384]
[1749369199876,1.10742237,649.45,648.95,0.384]
[1749369200076,1.10742237,649.44,648.95,0.384]
[1749369200280,1.10742237,649.43,648.95,0.384]
[1749369200476,1.10742237,649.42,648.95,0.384]
[1749369200777,1.10742237,649.41,648.95,0.384]
[1749369200976,1.10742237,649.4,648.95,0.384]
[1749369201179,1.10742237,649.39,648.95,0.384]
[1749369201380,1.10742237,649.38,648.95,0.384]
[1749369201680,1.10742237,649.37,648.95,0.384]
[1749369201880,1.10742237,649.36,648.95,0.384]
[1749369202076,1.10742237,649.35,648.95,0.384]
[1749369202376,1.15048802,649.56,648.95,0.384]
[1749369202579,2.25793208,649.55,648.95,0.384]
[1749369202779,1.10744406,649.54,648.95,0.384]
[1749369202976,1.10744406,649.53,648.95,0.384]
[1749369203175,1.10744406,649.52,648.95,0.384]
[1749369203380,1.10744406,649.51,648.95,0.384]
[1749369203577,0.26801702,649.42,648.95,0.384]
[1749369203781,1.10744406,649.41,648.95,0.384]
[1749369203982,1.10744406,649.4,648.95,0.384]
[1749369204181,1.10744406,649.39,648.95,0.384]
[1749369204380,1.10744406,649.38,648.95,0.384]
[1749369204580,1.10744406,649.37,648.95,0.384]
[1749369204784,0.26801702,649.42,648.95,0.384]
[1749369205080,1.10774505,649.41,648.96,0.539]
[1749369205285,1.10774505,649.4,648.96,0.539]
[1749369205480,1.10774505,649.39,648.96,0.539]
[1749369205685,1.10774505,649.38,648.96,0.539]
[1749369205882,1.10774505,649.37,648.96,0.539]
[1749369206081,1.10774839,649.36,648.96,0.539]
[1749369206283,0.26801702,649.42,648.96,0.539]
[1749369206486,1.10777001,649.41,648.96,0.539]
[1749369206687,1.10777001,649.4,648.96,0.539]
[1749369206885,1.10777001,649.39,648.96,0.539]
[1749369207085,1.10777001,649.38,648.96,0.539]
[1749369207288,1.10777001,649.37,648.96,0.539]
[1749369207489,0.26801702,649.42,648.96,0.539]
[1749369207790,1.10780443,649.41,648.96,0.539]
[1749369207988,1.10780443,649.4,648.96,0.539]
[1749369208187,1.10780443,649.39,648.96,0.539]
[1749369208391,1.10780443,649.38,648.97,0.384]
[1749369208690,1.10780443,649.37,648.97,0.384]
[1749369208890,0.26801702,649.42,648.97,0.384]
[1749369209187,1.10782457,649.41,648.97,0.384]
[1749369209387,1.10782457,649.4,648.97,0.384]
[1749369209585,1.10782457,649.39,648.97,0.384]
[1749369209785,1.10782457,649.38,648.97,0.384]
[1749369209990,1.10782457,649.37,648.97,0.384]
[1749369210186,0.26801702,649.42,648.97,0.384]
[1749369210890,0.427,649.59,648.97,0.384]
[1749369211090,0.26799122,649.49,648.97,0.384]
[1749369211287,1.10797691,649.48,648.97,0.384]
[1749369211590,1.10797691,649.47,648.97,0.384]
[1749369211791,0.26799122,649.49,648.97,0.384]
[1749369211990,1.10795872,649.48,648.97,0.384]
[1749369212192,0.26799122,649.49,648.97,0.384]
[1749369212394,1.10783068,649.48,648.97,0.384]
[1749369212693,0.26799122,649.49,648.97,0.384]
[1749369212895,1.10783377,649.48,648.97,0.384]
[1749369213091,0.26799122,649.49,648.97,0.384]
[1749369215098,1.10739154,649.48,648.97,0.384]
[1749369215297,1.10729153,649.47,648.97,0.384]
[1749369215494,1.10729153,649.46,648.97,0.384]
[1749369215797,1.10729153,649.45,648.97,0.384]
[1749369215997,1.10729153,649.44,648.97,0.384]
[1749369216197,1.10729153,649.43,648.97,0.384]
[1749369216403,0.26799122,649.49,648.97,0.384]
[1749369216602,1.10725431,649.48,648.97,0.384]
[1749369216800,1.10725431,649.47,648.97,0.384]
[1749369217000,1.10725431,649.46,648.97,0.384]
[1749369217202,1.10725431,649.45,648.97,0.384]
[1749369217402,1.10725431,649.44,648.97,0.384]
[1749369217600,1.10725431,649.43,648.97,0.384]
[1749369217801,0.26799122,649.49,648.97,0.384]
[1749369218001,1.10724174,649.48,648.97,0.384]
[1749369218304,1.10724174,649.47,648.97,0.384]
[1749369218602,1.10724174,649.46,648.97,0.384]
[1749369218800,1.10724174,649.45,648.97,0.384]
[1749369219001,1.10724174,649.44,648.97,0.384]
[1749369219303,1.10724174,649.43,648.97,0.384]
[1749369219502,0.26799122,649.49,648.97,0.384]
[1749369219706,1.10721413,649.48,648.97,0.384]
[1749369220005,1.10721413,649.47,648.97,0.384]
[1749369220305,1.10721413,649.46,648.97,0.384]
[1749369220504,1.10721413,649.45,648.97,0.384]
[1749369220705,1.10721413,649.44,648.97,0.384]
[1749369220899,1.10721413,649.43,648.97,0.384]
[1749369221104,0.26799122,649.49,648.97,0.384]
[1749369221304,1.10719234,649.48,648.97,0.384]
[1749369221504,1.10719234,649.47,648.97,0.384]
[1749369221704,1.10719234,649.46,648.97,0.384]
[1749369221906,1.10719234,649.45,648.97,0.384]
[1749369222104,1.10719234,649.44,648.97,0.384]
[1749369222302,1.10719234,649.43,648.97,0.384]
[1749369222508,0.26799122,649.49,648.96,0.539]
[1749369222708,1.10718159,649.48,648.96,0.539]
[1749369223005,1.10718159,649.47,648.96,0.539]
[1749369223305,1.10718159,649.46,648.92,0.3082044]
[1749369223603,1.10718159,649.45,648.92,0.3082044]
[1749369223803,1.10718159,649.44,648.92,0.3082044]
[1749369224007,1.10718159,649.43,648.92,0.3082044]
[1749369224210,0.26799122,649.49,648.92,0.3082044]
[1749369224410,1.10706596,649.48,648.92,0.3082044]
[1749369224709,1.10706596,649.47,648.92,0.3082044]
[1749369225011,1.10706596,649.46,648.92,0.3082044]
[1749369225309,1.10706596,649.45,648.93,0.384]
[1749369225512,1.10706596,649.44,648.93,0.384]
[1749369225710,1.10706596,649.43,648.93,0.384]
[1749369225911,0.26799122,649.49,648.93,0.384]
[1749369226207,1.1070647,649.48,648.93,0.384]
[1749369226411,1.1070647,649.47,648.93,0.384]
[1749369226606,1.1070647,649.46,648.93,0.384]
[1749369226806,1.1070647,649.45,648.93,0.384]
[1749369227008,1.1070647,649.44,648.94,0.525]
[1749369227211,1.1070647,649.43,648.94,0.525]
[1749369227513,1.1070647,649.42,648.94,0.525]
[1749369227809,0.26799122,649.49,648.94,0.525]
[1749369228009,1.10697205,649.48,648.94,0.525]
[1749369228210,1.1069869,649.47,648.94,0.525]
[1749369228514,1.1069869,649.46,648.94,0.525]
[1749369228809,1.1069869,649.45,648.94,0.525]
[1749369229013,1.1069869,649.44,648.94,0.525]
[1749369229210,1.1069869,649.43,648.94,0.525]
[1749369229413,1.1069869,649.42,648.94,0.525]
[1749369229616,1.1069869,649.41,648.94,0.525]
[1749369229812,0.386,649.44,648.94,0.525]
[1749369230013,1.10690825,649.43,648.94,0.525]
[1749369230316,1.10690825,649.42,648.94,0.525]
[1749369230611,1.10690825,649.41,648.94,0.525]
[1749369230813,0.386,649.44,648.94,0.525]
[1749369231011,1.10692455,649.43,648.94,0.525]
[1749369231215,1.10692455,649.42,648.94,0.525]
[1749369231515,0.386,649.44,648.94,0.525]
[1749369231713,1.10693543,649.43,648.94,0.525]
[1749369231914,1.10693543,649.42,648.94,0.525]
[1749369232113,1.10693543,649.41,648.94,0.525]
[1749369232317,0.386,649.44,648.94,0.525]
[1749369232516,1.10695304,649.43,648.94,0.525]
[1749369232715,1.10695304,649.42,648.94,0.525]
[1749369233012,1.10695304,649.41,648.94,0.525]
[1749369233312,0.386,649.44,648.94,0.525]
[1749369233612,1.10693006,649.43,648.94,0.525]
[1749369233812,1.10693006,649.42,648.94,0.525]
[1749369234115,1.10693006,649.41,648.94,0.525]
[1749369234316,0.386,649.44,648.94,0.525]
[1749369234612,1.10694709,649.43,648.94,0.525]
[1749369234811,1.10694709,649.42,648.94,0.525]
[1749369235015,1.10694709,649.41,648.94,0.525]
[1749369235315,1.10694709,649.4,648.94,0.525]
[1749369235516,0.386,649.44,648.94,0.525]
[1749369235712,1.10699321,649.43,648.94,0.525]
[1749369235911,1.10699321,649.42,648.94,0.525]
[1749369236112,1.10699321,649.41,648.94,0.525]
[1749369236311,1.10699321,649.4,648.94,0.525]
[1749369236515,0.386,649.44,648.94,0.525]
[1749369236717,1.10702046,649.43,648.94,0.525]
[1749369237016,1.10702046,649.42,648.94,0.525]
[1749369237216,1.10702046,649.41,648.94,0.525]
[1749369237413,1.10702046,649.4,648.94,0.525]
[1749369237613,0.386,649.44,648.94,0.525]
[1749369237816,1.1070088,649.43,648.94,0.525]
[1749369238112,1.1070088,649.42,648.94,0.525]
[1749369238312,1.1070088,649.41,648.94,0.525]
[1749369238515,1.1070088,649.4,648.94,0.525]
[1749369238713,0.386,649.44,648.94,0.525]
[1749369238917,1.1070237,649.43,648.94,0.525]
[1749369239111,1.1070237,649.42,648.94,0.525]
[1749369239316,1.1070237,649.41,648.94,0.525]
[1749369239517,1.1070237,649.4,648.94,0.525]
[1749369239716,0.386,649.44,648.94,0.525]
[1749369240014,1.10704686,649.43,648.94,0.525]
[1749369240217,1.10704686,649.42,648.94,0.525]
[1749369240412,0.386,649.44,648.94,0.525]
[1749369240413,1.10704686,649.41,648.94,0.525]
[1749369240617,1.10704686,649.4,648.94,0.525]
[1749369240814,0.386,649.44,648.94,0.525]
[1749369241017,1.10708823,649.43,648.94,0.525]
[1749369241313,1.10708823,649.42,648.94,0.525]
[1749369241518,1.10708823,649.41,648.94,0.525]
[1749369241719,1.10708823,649.4,648.94,0.525]
[1749369241920,0.386,649.44,648.94,0.525]
[1749369242118,1.107108,649.43,648.94,0.525]
[1749369242319,1.107108,649.42,648.94,0.525]
[1749369242619,1.107108,649.41,648.94,0.525]
[1749369242821,1.107108,649.4,648.94,0.525]
[1749369243019,0.386,649.44,648.94,0.525]
[1749369243218,1.10750142,649.43,648.94,0.525]
[1749369243419,1.10750142,649.42,648.94,0.525]
[1749369243622,1.10750142,649.41,648.94,0.525]
[1749369243818,1.10750142,649.4,648.94,0.525]
[1749369244024,0.386,649.44,648.94,0.525]
[1749369244221,1.10757984,649.43,648.94,0.525]
[1749369244420,1.10757984,649.42,648.94,0.525]
[1749369244723,1.10757984,649.41,648.94,0.525]
[1749369244921,1.10757984,649.4,648.94,0.525]
[1749369245120,1.10757984,649.39,648.94,0.525]
[1749369245321,0.26799122,649.49,648.94,0.525]
[1749369245524,1.10761366,649.48,648.94,0.525]
[1749369245721,1.10761366,649.47,648.94,0.525]
[1749369245919,0.26799122,649.49,648.94,0.525]
[1749369245920,1.10761366,649.46,648.94,0.525]
[1749369246123,1.10761366,649.45,648.92,0.3082044]
[1749369246320,1.10761366,649.44,648.92,0.3082044]
[1749369246520,1.10761366,649.43,648.92,0.3082044]
[1749369246719,1.10761366,649.42,648.92,0.3082044]
[1749369246919,1.10761366,649.41,648.92,0.3082044]
[1749369247223,1.10761366,649.4,648.92,0.3082044]
[1749369247520,0.26799122,649.49,648.92,0.3082044]
[1749369247725,1.10766215,649.48,648.92,0.3082044]
[1749369247925,1.10766215,649.47,648.92,0.3082044]
[1749369248125,1.10766215,649.46,648.92,0.3082044]
[1749369248321,1.10766215,649.45,648.92,0.3082044]
[1749369248524,0.611,649.48,648.92,0.3082044]
[1749369248525,1.10766215,649.44,648.92,0.3082044]
[1749369248724,1.10766215,649.43,648.92,0.3082044]
[1749369249021,1.10766215,649.42,648.92,0.3082044]
[1749369249223,1.10766215,649.41,648.93,0.383]
[1749369249420,1.10766215,649.4,648.93,0.383]
[1749369249625,0.611,649.48,648.94,0.542]
[1749369249823,1.1077474,649.47,648.94,0.542]
[1749369250021,1.1077474,649.46,648.94,0.542]
[1749369250323,1.1077474,649.45,648.94,0.542]
[1749369250523,0.611,649.48,648.94,0.542]
[1749369250524,1.1077474,649.44,648.94,0.542]
[1749369250721,1.1077474,649.43,648.94,0.542]
[1749369250925,1.1077474,649.42,648.94,0.542]
[1749369251123,1.1077474,649.41,648.94,0.542]
[1749369251322,1.1077474,649.4,648.94,0.542]
[1749369251525,0.611,649.48,648.94,0.542]
[1749369251723,1.1078066,649.47,648.94,0.542]
[1749369251925,1.1078066,649.46,648.94,0.542]
[1749369252124,1.1078066,649.45,648.94,0.542]
[1749369252327,0.611,649.48,648.94,0.542]
[1749369252328,1.1078066,649.44,648.94,0.542]
[1749369252528,1.1078066,649.43,648.94,0.542]
[1749369252823,1.1078066,649.42,648.94,0.542]
[1749369253025,1.1078066,649.41,648.94,0.542]
[1749369253229,1.1078066,649.4,648.94,0.542]
[1749369253425,0.611,649.48,648.94,0.542]
[1749369253625,1.10815246,649.47,648.94,0.542]
[1749369253825,1.10815246,649.46,648.94,0.542]
[1749369254126,1.10815246,649.45,648.94,0.542]
[1749369254326,1.10815246,649.44,648.94,0.542]
[1749369254526,1.10815246,649.43,648.94,0.542]
[1749369254731,1.10815246,649.42,648.94,0.542]
[1749369254931,1.10815246,649.41,648.94,0.542]
[1749369255228,1.10815246,649.4,648.94,0.542]
[1749369255529,1.10843323,649.39,648.94,0.542]
[1749369255732,0.611,649.48,648.94,0.542]
[1749369256032,1.10842797,649.47,648.94,0.542]
[1749369256231,1.10842797,649.46,648.94,0.542]
[1749369256427,1.10842797,649.45,648.94,0.542]
[1749369256628,1.10842797,649.44,648.94,0.542]
[1749369256830,1.10842797,649.43,648.94,0.542]
[1749369257133,1.10842797,649.42,648.94,0.542]
[1749369257330,1.10842797,649.41,648.94,0.542]
[1749369257531,1.10842797,649.4,648.94,0.542]
[1749369257730,1.10842797,649.39,648.94,0.542]
[1749369257933,0.611,649.48,648.94,0.542]
[1749369258229,1.10850317,649.47,648.94,0.542]
[1749369258427,1.10850317,649.46,648.94,0.542]
[1749369258632,1.10850317,649.45,648.94,0.542]
[1749369258830,1.10850317,649.44,648.94,0.542]
[1749369259029,1.10850317,649.43,648.94,0.542]
[1749369259233,1.10850317,649.42,648.94,0.542]
[1749369259533,1.10850317,649.41,648.94,0.542]
[1749369259730,1.10850317,649.4,648.94,0.542]
[1749369260030,1.10850317,649.39,648.94,0.542]
[1749369260230,0.611,649.48,648.94,0.542]
[1749369260434,1.10868682,649.47,648.94,0.542]
[1749369260631,1.10868682,649.46,648.94,0.542]
[1749369260832,1.10868682,649.45,648.94,0.542]
[1749369261035,1.10868682,649.44,648.94,0.542]
[1749369261231,1.10868682,649.43,648.94,0.542]
[1749369261535,1.10868682,649.42,648.94,0.542]
[1749369261836,1.10868682,649.41,648.94,0.542]
[1749369262032,1.10868682,649.4,648.94,0.542]
[1749369262235,1.10868682,649.39,648.94,0.542]
[1749369262532,1.10868682,649.38,648.94,0.542]
[1749369262735,0.611,649.48,648.94,0.542]
[1749369262933,1.10877755,649.47,648.94,0.542]
[1749369263132,0.611,649.48,648.94,0.542]
[1749369263133,1.10877755,649.46,648.94,0.542]
[1749369263331,1.10877755,649.45,648.94,0.542]
[1749369263634,1.10877755,649.44,648.94,0.542]
[1749369263832,1.10877755,649.43,648.94,0.542]
[1749369264032,1.10877755,649.42,648.94,0.542]
[1749369264236,1.10877755,649.41,648.94,0.542]
[1749369264433,1.10877755,649.4,648.94,0.542]
[1749369264632,1.10877755,649.39,648.94,0.542]
[1749369264836,1.10877755,649.38,648.94,0.542]
[1749369265032,0.611,649.48,648.94,0.542]
[1749369265235,1.10884656,649.47,648.94,0.542]
[1749369265433,1.10884656,649.46,648.94,0.542]
[1749369265637,1.10884656,649.45,648.94,0.542]
[1749369265838,1.10884656,649.44,648.94,0.542]
[1749369266134,1.10884656,649.43,648.94,0.542]
[1749369266436,1.10884656,649.42,648.94,0.542]
[1749369266637,1.10884656,649.41,648.94,0.542]
[1749369266838,1.10884656,649.4,648.94,0.542]
[1749369267037,1.10884656,649.39,648.94,0.542]
[1749369267334,1.10884656,649.38,648.94,0.542]
[1749369267633,1.10884656,649.37,648.94,0.542]
[1749369267838,0.26799122,649.49,648.94,0.542]
[1749369268037,1.10879319,649.48,648.94,0.542]
[1749369268234,1.10879319,649.47,648.94,0.542]
[1749369268438,1.10879319,649.46,648.94,0.542]
[1749369268738,1.10879319,649.45,648.94,0.542]
[1749369268936,1.10879319,649.44,648.94,0.542]
[1749369269238,1.10879319,649.43,648.94,0.542]
[1749369269539,1.65379319,649.42,648.94,0.542]
[1749369269738,1.10879319,649.41,648.94,0.542]
[1749369269938,1.10879319,649.4,648.94,0.542]